fUST/lending_fUST_20251230
["ID","MTS","AMOUNT","RATE_DAILY","PERIOD"]
[400093403,1767093040046,-500.0,0.00024383,2]
[400093405,1767093040056,-531.9,0.00024383,2]
[400093407,1767093040065,-1195.7,0.00024383,2]
[400093410,1767093040074,-156.87,0.000244,7]
[400093412,1767093040083,-151.0,0.000245,5]
[400093414,1767093040092,-151.0,0.000245,10]
[400093416,1767093040105,-1303.0100479,0.00024655,2]
[400093418,1767093040114,-998.01,0.00024657,2]
[400093420,1767093040123,-200.0,0.00024657,2]
[400093423,1767093040132,-1216.12,0.00024657,2]
[400093425,1767093040141,-500.0,0.00024657,2]
[400093427,1767093040151,-500.0,0.00024657,2]
[400093428,1767093040160,-188.62587961,0.00024657,2]
[400093429,1767093040169,-1195.7,0.00024657,2]
[400093430,1767093040178,-397.32,0.00024661,2]
[400093432,1767093040187,-660.0,0.00024712,2]
[400093434,1767093040197,-500.0,0.0002472,2]
[400093436,1767093040206,-151.0,0.000248,7]
[400093437,1767093040215,-151.0,0.000248,7]
[400093439,1767093040224,-151.0,0.000248,7]
[400093441,1767093040233,-151.0,0.000248,7]
[400093442,1767093040242,-161.798932,0.000248,7]
[400093443,1767093040251,-151.0,0.000248,7]
[400093444,1767093040261,-171.190953,0.000248,7]
[400093445,1767093040270,-171.190953,0.000248,7]
[400093446,1767093040280,-171.190953,0.000248,7]
[400093448,1767093040289,-171.190953,0.000248,7]
[400093449,1767093040299,-151.0,0.000248,7]
[400093451,1767093040308,-151.0,0.000248,7]
[400093452,1767093040318,-151.533477,0.000248,7]
[400093453,1767093040328,-15279.0607231,0.000248,2]
[400093454,1767093040337,-500.15351,0.000248,7]
[400093455,1767093040347,-500.15351,0.000248,7]
[400093456,1767093040356,-15176.8643054,0.000248,2]
[400093457,1767093040365,-500.15351,0.000248,7]
[400093458,1767093040375,-500.15351,0.000248,7]
[400093459,1767093040384,-1055.258506,0.000248,7]
[400093460,1767093040395,-1055.258506,0.000248,7]
[400093462,1767093040406,-1055.258506,0.000248,7]
[400093463,1767093040415,-1055.258506,0.000248,7]
[400093464,1767093040424,-151.0,0.000248,7]
[400093465,1767093040433,-212.855881,0.000248,7]
[400093466,1767093040442,-151.0,0.000248,7]
[400093467,1767093040452,-942.49911159,0.00024831,2]
[400093468,1767093040461,-151.0,0.000249,7]
[400093469,1767093040470,-151.0,0.000249,7]
[400093470,1767093040479,-151.0,0.000249,7]
[400093471,1767093040489,-151.0,0.000249,7]
[400093472,1767093040498,-151.0,0.000249,7]
[400093473,1767093040508,-171.190953,0.000249,7]
[400093474,1767093040518,-171.190953,0.000249,7]
[400093475,1767093040530,-171.190953,0.000249,7]
[400093476,1767093040539,-171.190953,0.000249,7]
[400093477,1767093040550,-151.0,0.000249,7]
[400093478,1767093040559,-151.0,0.000249,7]
[400093479,1767093040569,-500.15351,0.000249,7]
[400093480,1767093040579,-520818.303907,0.000249,2]
[400093481,1767093040589,-500.15351,0.000249,7]
[400093482,1767093040599,-500.15351,0.000249,7]
[400093483,1767093040608,-500.15351,0.000249,7]
[400093484,1767093040619,-1055.258506,0.000249,7]
[400093485,1767093040628,-1055.258506,0.000249,7]
[400093486,1767093040638,-1055.258506,0.000249,7]
[400093487,1767093040647,-1055.258506,0.000249,7]
[400093488,1767093040657,-151.0,0.000249,7]
[400093489,1767093040667,-151.0,0.000249,7]
[400093490,1767093040677,-998.01,0.00024931,2]
[400093491,1767093040687,-200.0,0.00024931,2]
[400093492,1767093040700,-1216.12,0.00024931,2]
[400093493,1767093040710,-500.0,0.00024931,2]
[400093494,1767093040720,-500.0,0.00024931,2]
[400093495,1767093040729,-1195.7,0.00024931,2]
[400093496,1767093040739,-500.0,0.00024945,2]
[400093497,1767093040748,-461.28,0.0002496,2]
[400093498,1767093040757,-601.3563936,0.00024999,2]
[400093499,1767093040767,-1082.44150848,0.00024999,2]
[400093500,1767093040776,-292.29214534,0.00024999,2]
[400093501,1767093040897,-333.21560927,0.00024999,2]
[400093502,1767093040907,-599.78809669,0.00024999,2]
[400093503,1767093040918,-151.61654288,0.00024999,2]
[400093504,1767093040928,-606.46617153,0.00024999,2]
[400093505,1767093040938,-1364.54888595,0.00024999,2]
[400093506,1767093040947,-277.60240131,0.00024999,2]
[400093507,1767093040957,-499.68432236,0.00024999,2]
[400093508,1767093040967,-326.43806117,0.00024999,2]
[400093509,1767093040976,-1041.66666667,0.00025,30]
[400093510,1767093040985,-227900.00000091,0.00025,2]
[400093511,1767093040995,-175.83308,0.00025,7]
[400093512,1767093041006,-247.576032,0.00025,7]
[400093513,1767093041025,-151.0,0.00025,7]
[400093514,1767093041045,-151.0,0.00025,7]
[400093515,1767093041056,-171.190953,0.00025,7]
[400093516,1767093041065,-171.190953,0.00025,7]
[400093517,1767093041075,-171.190953,0.00025,7]
[400093518,1767093041084,-171.190953,0.00025,7]
[400093519,1767093041093,-151.0,0.00025,7]
[400093520,1767093041105,-151.0,0.00025,7]
[400093521,1767093041115,-500.15351,0.00025,7]
[400093522,1767093041125,-500.15351,0.00025,7]
[400093523,1767093041134,-500.15351,0.00025,7]
[400093524,1767093041145,-500.15351,0.00025,7]
[400093525,1767093041154,-1055.258506,0.00025,7]
[400093526,1767093041163,-1055.258506,0.00025,7]
[400093527,1767093041175,-1055.258506,0.00025,7]
[400093528,1767093041184,-1055.258506,0.00025,7]
[400093529,1767093041193,-151.0,0.00025,7]
[400093530,1767093041203,-219.903846,0.00025,7]
[400093531,1767093041212,-500.0,0.00025025,7]
[400093532,1767093041222,-1762.4652,0.00025151,2]
[400093533,1767093041231,-998.01,0.00025205,2]
[400093534,1767093041241,-200.0,0.00025205,2]
[400093535,1767093041250,-1216.12,0.00025205,2]
[400093536,1767093041259,-500.0,0.00025205,2]
[400093537,1767093041268,-500.0,0.00025205,2]
[400093538,1767093041277,-1195.7,0.00025205,2]
[400093539,1767093041287,-942.49911155,0.00025228,2]
[400093540,1767093041296,-500.0,0.00025235,7]
[400093541,1767093041305,-760.0,0.0002526,2]
[400093542,1767093041315,-312.0,0.00025272,2]
[400093543,1767093041324,-290.7408406,0.0002528,2]
[400093544,1767093041334,-500.0,0.00025468,7]
[400093545,1767093041344,-998.01,0.00025479,2]
[400093546,1767093041354,-200.0,0.00025479,2]
[400093547,1767093041363,-1216.12,0.00025479,2]
[400093548,1767093041373,-500.0,0.00025479,2]
[400093549,1767093041383,-576.92380782,0.00025479,2]
[400093550,1767093041392,-1195.7,0.00025479,2]
[400093551,1767093041402,-191.79576387,0.00025513,2]
[400093552,1767093041413,-500.0,0.00025557,7]
[400093553,1767093041423,-1781.41759754,0.00025568,2]
[400093554,1767093041432,-500.0,0.00025575,7]
[400093555,1767093041441,-500.0,0.0002558,7]
[400093556,1767093041451,-500.0,0.00025598,7]
[400093557,1767093041460,-436.38,0.000256,7]
[400093558,1767093041469,-942.49911155,0.00025624,2]
[400093559,1767093041479,-998.01,0.00025753,2]
[400093560,1767093041488,-311.3580163,0.00025753,2]
[400093561,1767093041498,-1216.12,0.00025753,2]
[400093562,1767093041507,-500.0,0.00025753,2]
[400093563,1767093041516,-1195.7,0.00025753,2]
[400093564,1767093041526,-860.0,0.00025807,2]
[400093565,1767093041535,-500.0,0.00025814,7]
[400093566,1767093041545,-1395.06,0.00026,14]
[400093567,1767093041554,-163.75,0.00026,7]
[400093568,1767093041564,-942.49911155,0.00026021,2]
[400093569,1767093041573,-998.01,0.00026027,2]
[400093570,1767093041582,-1216.12,0.00026027,2]
[400093571,1767093041591,-285.40536442,0.00026027,2]
[400093572,1767093041600,-1195.7,0.00026027,2]
[400093573,1767093041609,-446.98,0.00026031,2]
[400093574,1767093041619,-7202.36,0.000261,2]
[400093575,1767093041628,-11167.34693313,0.000261,3]
[400093576,1767093041638,-168.0,0.00026102,2]
[400093577,1767093041647,-168.0,0.00026113,2]
[400093578,1767093041658,-156.87,0.000262,7]
[400093579,1767093041667,-15279.06072301,0.00026208,2]
[400093580,1767093041676,-500.0,0.00026243,7]
[400093581,1767093041686,-908.4410556,0.00026299,2]
[400093582,1767093041695,-998.01,0.00026301,2]
[400093583,1767093041704,-1216.12,0.00026301,2]
[400093584,1767093041714,-1195.7,0.00026301,2]
[400093585,1767093041723,-168.0,0.00026308,2]
[400093586,1767093041732,-960.0,0.00026355,2]
[400093587,1767093041742,-1000.0,0.0002638,30]
[400093588,1767093041752,-1000.0,0.0002638,30]
[400093589,1767093041761,-151.0,0.00026392,7]
[400093590,1767093041770,-1088.43606432,0.00026392,2]
[400093591,1767093041779,-500.0,0.00026392,2]
[400093592,1767093041788,-250.0,0.00026392,2]
[400093593,1767093041797,-500.0,0.00026392,2]
[400093594,1767093041806,-250.0,0.00026392,2]
[400093595,1767093041815,-500.0,0.00026392,2]
[400093596,1767093041824,-250.0,0.00026392,2]
[400093597,1767093041833,-500.0,0.00026392,2]
[400093598,1767093041842,-250.0,0.00026392,2]
[400093599,1767093041852,-500.0,0.00026392,2]
[400093600,1767093041861,-250.0,0.00026392,2]
[400093601,1767093041870,-500.0,0.00026392,2]
[400093602,1767093041879,-151.0,0.00026392,2]
[400093603,1767093041889,-250.0,0.00026392,2]
[400093604,1767093041899,-500.0,0.00026392,2]
[400093605,1767093041908,-250.0,0.00026392,2]
[400093606,1767093041918,-151.0,0.00026392,2]
[400093607,1767093041928,-188.87914661,0.00026392,2]
[400093608,1767093041937,-500.0,0.00026392,2]
[400093609,1767093041947,-181.08010149,0.00026392,2]
[400093610,1767093041956,-151.0,0.00026392,2]
[400093611,1767093041965,-250.0,0.00026392,2]
[400093612,1767093041974,-500.0,0.00026392,2]
[400093613,1767093041983,-151.0,0.00026392,2]
[400093614,1767093041993,-500.0,0.00026392,2]
[400093615,1767093042002,-250.0,0.00026392,2]
[400093616,1767093042018,-152.25749732,0.00026392,2]
[400093617,1767093042032,-500.0,0.00026392,2]
[400093618,1767093042042,-250.0,0.00026392,2]
[400093619,1767093042051,-500.0,0.00026392,2]
[400093620,1767093042061,-250.0,0.00026392,2]
[400093621,1767093042071,-500.0,0.00026392,2]
[400093622,1767093042081,-250.0,0.00026392,2]
[400093623,1767093042090,-500.0,0.00026392,2]
[400093624,1767093042102,-250.0,0.00026392,2]
[400093625,1767093042111,-500.0,0.00026392,2]
[400093626,1767093042122,-250.0,0.00026392,2]
[400093627,1767093042131,-308.77706616,0.00026392,2]
[400093628,1767093042141,-250.0,0.00026392,2]
[400093629,1767093042150,-250.0,0.00026392,2]
[400093630,1767093042160,-151.0,0.00026392,2]
[400093631,1767093042170,-250.0,0.00026392,2]
[400093632,1767093042179,-151.0,0.00026392,2]
[400093633,1767093042189,-500.0,0.00026392,2]
[400093634,1767093042199,-250.0,0.00026392,2]
[400093635,1767093042208,-151.0,0.00026392,2]
[400093636,1767093042218,-2398.4119403,0.00026392,2]
[400093637,1767093042228,-500.0,0.00026392,2]
[400093638,1767093042238,-250.0,0.00026392,2]
[400093639,1767093042247,-151.0,0.00026392,2]
[400093640,1767093042257,-530.52894229,0.00026392,2]
[400093641,1767093042267,-251.85638758,0.00026392,2]
[400093642,1767093042276,-151.0,0.00026392,2]
[400093643,1767093042286,-151.0,0.00026392,2]
[400093644,1767093042295,-151.0,0.00026392,2]
[400093645,1767093042306,-151.0,0.00026392,2]
[400093646,1767093042315,-151.0,0.00026392,2]
[400093647,1767093042326,-151.0,0.00026392,2]
[400093648,1767093042337,-151.0,0.00026392,2]
[400093649,1767093042346,-151.0,0.00026392,2]
[400093650,1767093042356,-151.0,0.00026392,2]
[400093651,1767093042365,-151.0,0.00026392,2]
[400093652,1767093042375,-250.0,0.00026392,2]
[400093653,1767093042385,-151.0,0.00026392,2]
[400093654,1767093042395,-496.47127164,0.00026392,2]
[400093655,1767093042405,-250.0,0.00026392,2]
[400093656,1767093042414,-250.0,0.00026392,2]
[400093657,1767093042425,-250.0,0.00026392,2]
[400093658,1767093042435,-250.0,0.00026392,2]
[400093659,1767093042444,-250.0,0.00026392,2]
[400093660,1767093042454,-250.0,0.00026392,2]
[400093661,1767093042464,-376.2058582,0.00026392,2]
[400093662,1767093042473,-942.49911155,0.00026417,2]
[400093663,1767093042483,-329.7690604,0.00026504,2]
[400093664,1767093042493,-236.7373933,0.00026504,2]
[400093665,1767093042502,-168.0,0.00026549,2]
[400093666,1767093042512,-998.01,0.00026575,2]
[400093667,1767093042523,-1216.12,0.00026575,2]
[400093668,1767093042533,-1195.7,0.00026575,2]
[400093669,1767093042543,-1055.258506,0.00026575,7]
[400093670,1767093042552,-1055.258506,0.00026575,7]
[400093671,1767093042562,-1055.258506,0.00026575,7]
[400093672,1767093042572,-1055.25851,0.00026575,7]
[400093673,1767093042584,-4933.5713408,0.00026602,2]
[400093674,1767093042593,-151.0,0.00026602,7]
[400093675,1767093042603,-151.0,0.00026602,7]
[400093676,1767093042613,-171.190953,0.00026602,7]
[400093677,1767093042623,-171.190953,0.00026602,7]
[400093678,1767093042633,-171.190953,0.00026602,7]
[400093679,1767093042643,-171.190953,0.00026602,7]
[400093680,1767093042652,-151.0,0.00026602,7]
[400093681,1767093042662,-244.549377,0.00026602,7]
[400093682,1767093042672,-500.15351,0.00026602,7]
[400093683,1767093042681,-500.15351,0.00026602,7]
[400093684,1767093042691,-500.15351,0.00026602,7]
[400093685,1767093042700,-500.153508,0.00026602,7]
[400093686,1767093042710,-667.141516,0.00026676,2]
[400093687,1767093042719,-500.0,0.00026695,7]
[400093688,1767093042729,-168.0,0.00026709,2]
[400093689,1767093042738,-5000.0,0.00026813,2]
[400093690,1767093042748,-942.49911155,0.00026814,2]
[400093691,1767093042757,-151.34140967,0.00026814,6]
[400093692,1767093042767,-756.0,0.00026831,7]
[400093693,1767093042776,-998.01,0.00026849,2]
[400093694,1767093042785,-1216.12,0.00026849,2]
[400093695,1767093042795,-1195.7,0.00026849,2]
[400093696,1767093042804,-1060.0,0.00026903,2]
[400093697,1767093042814,-2487.15318209,0.0002694,2]
[400093699,1767093042824,-514.84070869,0.0002694,2]
[400093700,1767093042834,-500.0,0.00026979,7]
[400093701,1767093042844,-168.0,0.00026984,7]
[400093702,1767093042853,-199.7770918,0.0002699,5]
[400093703,1767093042863,-798.30925883,0.0002699,5]
[400093704,1767093042873,-365.41620562,0.0002699,5]
[400093705,1767093042882,-158.47509667,0.0002699,5]
[400093706,1767093042893,-633.26648628,0.0002699,5]
[400093707,1767093042903,-188.0,0.00027,7]
[400093708,1767093042912,-436.38,0.000271,7]
[400093709,1767093042922,-998.01,0.00027123,2]
[400093710,1767093042932,-1216.12,0.00027123,2]
[400093711,1767093042942,-1195.7,0.00027123,2]
[400093712,1767093042951,-4192.91527395,0.00027159,2]
[400093713,1767093042960,-942.49911155,0.0002721,2]
[400093714,1767093042970,-500.0,0.00027224,7]
[400093715,1767093042980,-281.56166012,0.0002726,24]
[400093716,1767093042989,-339.0,0.00027272,2]
[400093717,1767093042999,-151.0,0.000273,18]
[400093718,1767093043008,-500.0,0.00027335,7]
[400093719,1767093043018,-438.62150695,0.00027353,5]
[400093720,1767093043027,-998.01,0.00027397,2]
[400093721,1767093043036,-1216.12,0.00027397,2]
[400093722,1767093043046,-1195.7,0.00027397,2]
[400093723,1767093043055,-500.0,0.00027397,5]
[400093724,1767093043065,-200.0,0.00027397,12]
[400093725,1767093043074,-496.65,0.00027401,2]
[400093726,1767093043083,-1160.0,0.00027451,2]
[400093727,1767093043093,-168.0,0.00027487,7]
[400093728,1767093043106,-2579.17784983,0.00027488,2]
[400093729,1767093043115,-533.88981491,0.00027488,2]
[400093730,1767093043124,-1781.41759754,0.00027531,2]
[400093731,1767093043133,-1395.06,0.000276,14]
[400093732,1767093043143,-942.49911155,0.00027607,2]
[400093733,1767093043153,-500.0,0.00027609,7]
[400093734,1767093043162,-15279.06072301,0.00027616,2]
[400093735,1767093043171,-998.01,0.00027671,2]
[400093736,1767093043182,-1216.12,0.00027671,2]
[400093737,1767093043191,-1195.7,0.00027671,2]
[400093738,1767093043201,-188.0,0.00027671,14]
[400093739,1767093043210,-7202.36,0.000277,2]
[400093740,1767093043219,-469.44015882,0.0002772,2]
[400093741,1767093043229,-367230.29905243,0.0002772,2]
[400093742,1767093043421,-2790.2516653,0.0002772,2]
[400093743,1767093043433,-1748.29487563,0.0002772,2]
[400093744,1767093043449,-60030.36011037,0.0002772,2]
[400093745,1767093043460,-2555.7276687,0.0002772,2]
[400093746,1767093043472,-5745.74079194,0.0002772,2]
[400093747,1767093043485,-482.24165179,0.0002772,2]
[400093748,1767093043498,-2741.79265226,0.0002772,2]
[400093749,1767093043511,-2274.94824203,0.0002772,2]
[400093750,1767093043546,-717.828,0.00026392,2]
[400093756,1767093043582,-282.172,0.00026392,2]
[400093758,1767093043590,-217.828,0.00026392,2]
[400093760,1767093043601,-727.71476658,0.00026392,2]
[400093766,1767093044553,-54.45723342,0.00026392,2]
[400093767,1767093044563,-1000.0,0.00026392,2]
[400093768,1767093044572,-1000.0,0.00026392,2]
[400093769,1767093044581,-1000.0,0.00026392,2]
[400093770,1767093044591,-1000.0,0.00026392,2]
[400093771,1767093044600,-1000.0,0.00026392,2]
[400093772,1767093044609,-1000.0,0.00026392,2]
[400093773,1767093044619,-1000.0,0.00026392,2]
[400093774,1767093044628,-58763.03992865,0.0002772,2]
[400093775,1767093044639,-7508.04858177,0.0002772,2]
[400093779,1767093045343,-542.41,0.00026392,2]
[400093787,1767093046340,-457.59,0.00026392,2]
[400093788,1767093046350,-1000.0,0.00026392,2]
[400093789,1767093046359,-1000.0,0.00026392,2]
[400093790,1767093046369,-18169.73266041,0.0002772,2]
[400093791,1767093046499,-452.60481759,0.0002772,2]
[400093792,1767093046512,-40977.91224759,0.0002772,2]
[400093793,1767093046523,-2436.94948074,0.0002772,2]
[400093794,1767093046556,-1438.72,0.0002772,2]
[400093852,1767094238375,-166.56276468,0.00018578,3]
[400093854,1767094238385,-698.0,0.00018678,2]
[400093855,1767094238395,-166.56276467,0.00019162,3]
[400093856,1767094238405,-166.56276467,0.00019746,3]
[400093857,1767094238415,-1200.0,0.0002,5]
[400093858,1767094238426,-150.08,0.00020127,2]
[400093859,1767094238436,-177.0,0.00021262,2]
[400093860,1767094238446,-175.09,0.00021385,2]
[400093861,1767094238455,-2486.641288,0.00021849,2]
[400093862,1767094238465,-1041.66666667,0.00022009,2]
[400093863,1767094238475,-200.1,0.00022643,2]
[400093864,1767094238485,-1019.58867496,0.00022708,2]
[400093865,1767094238495,-204.0,0.00023262,2]
[400093867,1767094238505,-500.0,0.00023493,2]
[400093869,1767094238515,-500.0,0.00023839,2]
[400093871,1767094238525,-225.12,0.00023901,2]
[400093872,1767094238535,-500.0,0.00024078,2]
[400093873,1767094238545,-500.0,0.00024141,2]
[400093874,1767094238554,-325.62420812,0.00024141,2]
[400093875,1767094238564,-500.0,0.00024141,2]
[400093876,1767094238573,-500.0,0.00024141,2]
[400093877,1767094238583,-309.10334639,0.00024141,2]
[400093878,1767094238594,-500.0,0.00024141,2]
[400093879,1767094238604,-500.0,0.00024141,2]
[400093880,1767094238614,-511.66068061,0.00024141,2]
[400093881,1767094238624,-500.0,0.00024141,2]
[400093882,1767094238633,-500.0,0.00024141,2]
[400093883,1767094238643,-500.0,0.00024141,2]
[400093884,1767094238653,-500.0,0.00024141,2]
[400093885,1767094238666,-500.0,0.00024141,2]
[400093886,1767094238678,-500.0,0.00024141,2]
[400093887,1767094238692,-500.0,0.00024141,2]
[400093888,1767094238705,-500.0,0.00024141,2]
[400093889,1767094238717,-500.0,0.00024141,2]
[400093890,1767094238730,-500.0,0.00024141,2]
[400093891,1767094238740,-500.0,0.00024141,2]
[400093892,1767094238752,-500.0,0.00024141,2]
[400093893,1767094238765,-500.0,0.00024141,2]
[400093894,1767094238777,-500.0,0.00024141,2]
[400093895,1767094238789,-500.0,0.00024141,2]
[400093896,1767094238802,-500.0,0.00024141,2]
[400093897,1767094238814,-500.0,0.00024141,2]
[400093898,1767094238827,-500.0,0.00024141,2]
[400093899,1767094238840,-500.0,0.00024141,2]
[400093900,1767094238852,-333.3753483,0.00024141,2]
[400093901,1767094238863,-500.0,0.00024141,2]
[400093902,1767094238875,-500.0,0.00024141,2]
[400093903,1767094238888,-525.63186481,0.00024141,2]
[400093904,1767094238900,-535.07539364,0.00024141,2]
[400093905,1767094238914,-500.0,0.00024141,2]
[400093906,1767094238928,-500.0,0.00024141,2]
[400093907,1767094238940,-500.0,0.00024141,2]
[400093908,1767094238952,-446.90602828,0.00024141,2]
[400093909,1767094238964,-388.66566053,0.00024141,2]
[400093910,1767094238977,-500.0,0.00024141,2]
[400093911,1767094238988,-500.0,0.00024141,2]
[400093912,1767094239000,-500.0,0.00024141,2]
[400093913,1767094239013,-500.0,0.00024141,2]
[400093914,1767094239026,-500.0,0.00024141,2]
[400093915,1767094239038,-331596.20781339,0.00024142,2]
[400093916,1767094239049,-153.62810278,0.00024142,2]
[400093917,1767094239060,-757.0249156,0.00024148,30]
[400093918,1767094239073,-258.2095548,0.00024197,2]
[400093919,1767094239088,-976.55,0.000242,14]
[400093920,1767094239098,-305.46,0.000242,7]
[400093921,1767094239108,-1019.58867496,0.00024493,2]
[400093922,1767094239121,-24395.00107394,0.0002465,2]
[400093923,1767094239132,-380.0,0.00024658,2]
[400093924,1767094239143,-194.855978,0.00024964,2]
[400093925,1767094239156,-10390.32906121,0.00025,2]
[400093926,1767094239167,-68615.68266567,0.00025,15]
[400093927,1767094239220,-8581.03043972,0.00025,15]
[400093928,1767094239235,-398.40358852,0.00025,15]
[400093929,1767094239249,-1069.39056157,0.00025,15]
[400093930,1767094239262,-559.59362836,0.00025,15]
[400093974,1767094240554,-11563.67456925,0.00025,15]
[400093992,1767094245080,-1000.0,0.00025,15]
[400093993,1767094245093,-2300.82622,0.00025,15]
[400093994,1767094245105,-290.87174554,0.00025,15]
[400093995,1767094246520,-1502.95,0.00025,15]
[400093996,1767094246576,-2847.51155813,0.00025,15]
[400093998,1767094609080,400.0,0.000284,120]
[400093999,1767094646304,250.0,0.000284,120]
[400094000,1767094669389,200.0,0.000284,120]
[400094156,1767095438714,-600.427364,0.00013699,2]
[400094157,1767095438725,-615.0,0.00013699,2]
[400094158,1767095438736,-177.0,0.00018321,2]
[400094159,1767095438747,-194.41388837,0.0002,2]
[400094160,1767095438757,-600.427364,0.00020187,2]
[400094161,1767095438767,-204.0,0.00020321,2]
[400094162,1767095438776,-169.21,0.0002131,2]
[400094163,1767095438786,-231.0,0.00022321,2]
[400094164,1767095438794,-190.36,0.00022494,2]
[400094165,1767095438803,-217.99313106,0.00023216,2]
[400094166,1767095438813,-764.81479934,0.00023216,2]
[400094167,1767095438822,-211.51,0.00023678,2]
[400094168,1767095438833,-13345.93234165,0.00023678,2]
[400094169,1767095438843,-500.0,0.00023802,2]
[400094170,1767095438853,-300.0,0.0002381,2]
[400094171,1767095438863,-300.0,0.0002381,2]
[400094172,1767095438873,-300.0,0.0002381,2]
[400094173,1767095438883,-147.17737363,0.0002381,2]
[400094174,1767095438896,-152.82262637,0.0002381,2]
[400094175,1767095438906,-500.0,0.00024058,2]
[400094176,1767095438916,-1041.66666667,0.00024063,2]
[400094177,1767095438926,-39.23242511,0.00024138,2]
[400094201,1767095440941,-558.61757489,0.00024138,2]
[400094202,1767095440952,-500.0,0.0002414,2]
[400094203,1767095440964,-500.0,0.00024141,2]
[400094204,1767095440975,-500.0,0.00024283,2]
[400094205,1767095440986,-608.06,0.00024314,2]
[400094206,1767095440997,-261.49031758,0.00024314,2]
[400094207,1767095441007,-258.0,0.00024321,2]
[400094208,1767095441017,-72.51781449,0.00024362,2]
[400094224,1767095445451,-532.69396643,0.00024362,2]
[400094225,1767095445462,-500.0,0.00024362,2]
[400094226,1767095445472,-650.02827046,0.00024362,2]
[400094227,1767095445483,-247.27223131,0.00024362,2]
[400094228,1767095446132,-88.909087,0.00024362,2]
[400094229,1767095446141,-265.40729561,0.00024362,2]
[400094230,1767095446151,-1474.9475093,0.00024363,2]
[400094231,1767095446160,-528.0822352,0.00024363,2]
[400094232,1767095446170,-3551.03022181,0.00024363,2]
[400094233,1767095446181,-300.0,0.00024363,2]
[400094241,1767095446719,-4689.27203357,0.00024363,2]
[400094242,1767095579697,2286.91,0.00028767,120]
[400094316,1767096631701,-783.0,0.00023222,2]
[400094318,1767096631711,-91.63818407,0.00023222,2]
[400094323,1767096631755,-103.21779393,0.00023222,2]
[400094325,1767096631764,-421.64715143,0.00023621,2]
[400094355,1767096637736,-1125.90730474,0.00023621,2]
[400094357,1767096637746,-850.86494272,0.00023621,2]
[400094360,1767096637790,-370.70519597,0.00023621,2]
[400094361,1767096637801,-325.98431748,0.00023621,2]
[400094362,1767096637810,-431.0,0.00023946,2]
[400094363,1767096637819,-3837.80330754,0.00023953,2]
[400094365,1767096638000,-701.93283237,0.00023953,2]
[400094366,1767096638010,-300.0,0.00023999,2]
[400094367,1767096638023,-279.14483278,0.00023999,2]
[400094376,1767096640078,-20.85516722,0.00023999,2]
[400094377,1767096640091,-1110.78245122,0.00024,2]
[400094378,1767096640107,-291.51654878,0.00024,2]
[400094379,1767096640119,-590.11212884,0.00024,2]
[400094380,1767096640133,-409.88787116,0.00024,2]
[400094381,1767096640143,-490.11212884,0.00024053,2]
[400094394,1767096644273,-2050.02747866,0.00024011,2]
[400094395,1767096644285,-1970.56630394,0.00024053,2]
[400094396,1767096644299,-227.1102639,0.00024053,2]
[400094397,1767096644311,-3875.7990151,0.00024053,2]
[400094398,1767096644324,-7872.54689091,0.00024053,2]
[400094399,1767096644337,-4082.51093878,0.00024053,2]
[400094400,1767096645110,-3560.05144969,0.00024053,2]